bitfinex/quotes_BTCUSD_20240701
["timestamp","ask_amount","ask_price","bid_price","bid_amount"]
[1719829618151,2.85530715,62945.0,62944.0,0.000924]
[1719829618575,2.85537899,62945.0,62944.0,0.000924]
[1719829618783,2.82737899,62945.0,62944.0,0.000924]
[1719829618982,2.84137899,62945.0,62944.0,0.000924]
[1719829619421,2.85537899,62945.0,62944.0,0.000924]
[1719829619829,2.65537899,62945.0,62944.0,0.000924]
[1719829620024,2.85537899,62945.0,62944.0,0.000924]
[1719829620907,2.65537899,62945.0,62944.0,0.000924]
[1719829621140,2.65523165,62945.0,62944.0,0.000924]
[1719829621552,2.65523518,62945.0,62944.0,0.000924]
[1719829622254,2.21451695,62945.0,62944.0,0.000924]
[1719829622454,2.17281695,62945.0,62944.0,0.000924]
[1719829623175,2.49055395,62945.0,62944.0,0.000924]
[1719829623593,2.51127387,62945.0,62944.0,0.000924]
[1719829624354,2.49727387,62945.0,62944.0,0.000924]
[1719829624624,2.51127387,62945.0,62944.0,0.000924]
[1719829625127,2.48327387,62945.0,62944.0,0.000924]
[1719829625327,2.49727387,62945.0,62944.0,0.000924]
[1719829625555,2.51127387,62945.0,62944.0,0.000924]
[1719829625760,2.49727387,62945.0,62944.0,0.000924]
[1719829625885,2.49055395,62945.0,62944.0,0.000924]
[1719829627295,2.47655395,62945.0,62944.0,0.000924]
[1719829627780,2.49055395,62945.0,62944.0,0.000924]
[1719829628993,2.47655395,62945.0,62944.0,0.000924]
[1719829629373,2.49055395,62945.0,62944.0,0.000924]
[1719829630709,2.71112911,62945.0,62944.0,0.000924]
[1719829631308,3.26559011,62945.0,62944.0,0.000924]
[1719829631513,2.98111211,62945.0,62944.0,0.000924]
[1719829631746,2.96711211,62945.0,62944.0,0.000924]
[1719829631952,2.95311211,62945.0,62944.0,0.000924]
[1719829632159,2.98111211,62945.0,62944.0,0.000924]
[1719829632581,2.97049864,62945.0,62944.0,0.000924]
[1719829633057,2.72075364,62945.0,62944.0,0.000924]
[1719829633215,2.70595164,62945.0,62944.0,0.000924]
[1719829633450,2.69195164,62945.0,62944.0,0.000924]
[1719829634195,2.70595164,62945.0,62944.0,0.000924]
[1719829634542,2.50051564,62945.0,62944.0,0.000924]
[1719829634953,2.48651564,62945.0,62944.0,0.000924]
[1719829635195,2.41211564,62945.0,62944.0,0.000924]
[1719829635517,2.10815594,62945.0,62944.0,0.000924]
[1719829636015,2.08758078,62945.0,62944.0,0.000924]
[1719829636259,2.10802039,62945.0,62944.0,0.000924]
[1719829636466,2.42575739,62945.0,62944.0,0.000924]
[1719829636830,2.41175739,62945.0,62944.0,0.000924]
[1719829637195,2.42575739,62945.0,62944.0,0.000924]
[1719829637738,2.48615739,62945.0,62944.0,0.000924]
[1719829637939,2.41175739,62945.0,62944.0,0.000924]
[1719829638144,2.49119138,62945.0,62944.0,0.000924]
[1719829638300,2.47719138,62945.0,62944.0,0.000924]
[1719829639037,2.49119138,62945.0,62944.0,0.000924]
[1719829639240,2.50028595,62945.0,62944.0,0.000924]
[1719829639408,2.42588595,62945.0,62944.0,0.000924]
[1719829639608,2.50028595,62945.0,62944.0,0.000924]
[1719829639927,2.18254895,62945.0,62944.0,0.000924]
[1719829640522,2.50028595,62945.0,62944.0,0.000924]
[1719829640720,2.50672316,62945.0,62944.0,0.000924]
[1719829642456,2.50672886,62945.0,62944.0,0.000924]
[1719829643733,2.18899186,62945.0,62944.0,0.000924]
[1719829644530,2.50672886,62945.0,62944.0,0.000924]
[1719829645524,2.50675951,62945.0,62944.0,0.000924]
[1719829646094,2.18902251,62945.0,62944.0,0.000924]
[1719829646818,2.50675951,62945.0,62944.0,0.000924]
[1719829648772,2.50671321,62945.0,62944.0,0.000924]
[1719829649057,2.48615125,62945.0,62944.0,0.000924]
[1719829649266,2.50669432,62945.0,62944.0,0.000924]
[1719829649870,2.49269432,62945.0,62944.0,0.000924]
[1719829650275,3.52573032,62945.0,62944.0,0.000924]
[1719829650733,3.51173032,62945.0,62944.0,0.000924]
[1719829651128,3.32573032,62945.0,62944.0,0.000924]
[1719829651306,3.52573032,62945.0,62944.0,0.000924]
[1719829651912,3.52575201,62945.0,62944.0,0.000924]
[1719829652720,3.31175201,62945.0,62944.0,0.000924]
[1719829652993,2.93656301,62945.0,62944.0,0.000924]
[1719829653116,3.02496301,62945.0,62944.0,0.000924]
[1719829653730,3.01096301,62945.0,62944.0,0.000924]
[1719829654129,3.02496301,62945.0,62944.0,0.000924]
[1719829654536,3.01096301,62945.0,62944.0,0.000924]
[1719829654734,3.02496301,62945.0,62944.0,0.000924]
[1719829654930,3.00439825,62945.0,62944.0,0.000924]
[1719829655165,3.02503122,62945.0,62944.0,0.000924]
[1719829655353,3.03903122,62945.0,62944.0,0.000924]
[1719829658352,3.03900615,62945.0,62944.0,0.000924]
[1719829658918,3.69445715,62945.0,62944.0,0.000924]
[1719829659121,3.48591615,62945.0,62944.0,0.000924]
[1719829659327,3.55051615,62945.0,62944.0,0.000924]
[1719829659529,0.178491,62936.0,62935.0,0.1402]
[1719829659731,0.804082,62934.0,62933.0,0.08617237]
[1719829659956,0.804082,62934.0,62933.0,0.16637237]
[1719829659957,1.71814672,62934.0,62933.0,0.16637237]
[1719829660136,2.03593972,62934.0,62933.0,0.22697237]
[1719829660924,2.05073453,62934.0,62933.0,0.22697237]
[1719829661127,2.05898168,62934.0,62933.0,0.22697237]
[1719829661408,2.07298168,62934.0,62933.0,0.22697237]
[1719829661628,2.07377604,62934.0,62933.0,0.22697237]
[1719829662006,2.07377647,62934.0,62933.0,0.22697237]
[1719829662378,2.05977647,62934.0,62933.0,0.22697237]
[1719829662582,2.05577647,62934.0,62933.0,0.08617237]
[1719829662784,2.06977647,62934.0,62933.0,0.22427237]
[1719829662983,2.08377647,62934.0,62933.0,0.22427237]
[1719829663921,2.07377647,62934.0,62933.0,0.22427237]
[1719829664815,2.07377808,62934.0,62933.0,0.22427237]
[1719829667047,2.07337808,62934.0,62933.0,0.22427237]
[1719829667864,2.07337973,62934.0,62933.0,0.22427237]
[1719829671093,2.06512934,62934.0,62933.0,0.22427237]
[1719829671337,2.07338017,62934.0,62933.0,0.22427237]
[1719829672266,2.09300037,62934.0,62933.0,0.22427237]
[1719829672494,2.10300037,62934.0,62933.0,0.22427237]
[1719829672694,2.42079337,62934.0,62933.0,0.08617237]
[1719829674413,2.42079277,62934.0,62933.0,0.08617237]
[1719829674755,2.41254254,62934.0,62933.0,0.08617237]
[1719829674881,2.42079274,62934.0,62933.0,0.08617237]
[1719829677498,2.42078888,62934.0,62933.0,0.08617237]
[1719829680791,2.42078706,62934.0,62933.0,0.08617237]
[1719829681354,2.58160208,62934.0,62933.0,0.08617237]
[1719829683080,2.42078704,62934.0,62933.0,0.08617237]
[1719829683284,2.58157952,62934.0,62933.0,0.08617237]
[1719829684447,2.65597952,62934.0,62933.0,0.08617237]
[1719829686364,2.6477011,62934.0,62933.0,0.08709637]
[1719829686600,2.49602636,62934.0,62933.0,0.08709637]
[1719829687163,2.48778254,62934.0,62933.0,0.08709637]
[1719829687863,2.6955386,62934.0,62933.0,0.08709637]
[1719829690096,2.49602656,62934.0,62933.0,0.08709637]
[1719829690302,2.6955386,62934.0,62933.0,0.08709637]
[1719829690701,2.6955386,62934.0,62933.0,0.16229637]
[1719829690702,2.69553861,62934.0,62933.0,0.16229637]
[1719829691100,2.85629717,62934.0,62933.0,0.15359637]
[1719829691732,2.69553861,62934.0,62933.0,0.15359637]
[1719829692538,2.85629717,62934.0,62933.0,0.15359637]
[1719829692752,2.85629717,62934.0,62933.0,0.07839637]
[1719829693537,2.8563014,62934.0,62933.0,0.07839637]
[1719829694636,2.69553853,62934.0,62933.0,0.07839637]
[1719829694837,2.68553853,62934.0,62933.0,0.07839637]
[1719829695038,2.69553853,62934.0,62933.0,0.07839637]
[1719829695542,2.8463014,62934.0,62933.0,0.07839637]
[1719829696941,2.8563014,62934.0,62933.0,0.07839637]
[1719829697235,2.8463014,62934.0,62933.0,0.07839637]
[1719829697443,2.64678936,62934.0,62933.0,0.07839637]
[1719829698914,2.65678936,62934.0,62933.0,0.07839637]
[1719829699329,2.58238936,62934.0,62933.0,0.07839637]
[1719829699536,2.65678936,62934.0,62933.0,0.07839637]
[1719829699973,2.64858261,62934.0,62933.0,0.07839637]
[1719829700171,2.65682661,62934.0,62933.0,0.07839637]
[1719829700577,2.65683294,62934.0,62933.0,0.07839637]
[1719829702354,2.64683294,62934.0,62933.0,0.07839637]
[1719829702778,2.65683294,62934.0,62933.0,0.07839637]
[1719829703137,2.47778254,62934.0,62933.0,0.07839637]
[1719829703264,2.64684798,62934.0,62933.0,0.07839637]
[1719829703468,2.48602648,62934.0,62933.0,0.07839637]
[1719829703883,2.64685629,62934.0,62933.0,0.07839637]
[1719829704311,2.48602648,62934.0,62933.0,0.07839637]
[1719829706521,2.48602663,62934.0,62933.0,0.07839637]
[1719829708226,2.41162663,62934.0,62933.0,0.07839637]
[1719829708523,2.48602663,62934.0,62933.0,0.07839637]
[1719829709593,2.48602668,62934.0,62933.0,0.07839637]
[1719829710048,2.49602668,62934.0,62933.0,0.07839637]
[1719829710245,2.48602668,62934.0,62933.0,0.07839637]
[1719829710449,2.49602668,62934.0,62933.0,0.07839637]
[1719829712849,2.49602664,62934.0,62933.0,0.07839637]
[1719829716140,2.48602664,62934.0,62933.0,0.07839637]
[1719829716522,2.49602664,62934.0,62933.0,0.07839637]
[1719829717139,2.48602664,62934.0,62933.0,0.07839637]
[1719829717337,2.49602664,62934.0,62933.0,0.07839637]
[1719829717723,2.48602664,62934.0,62933.0,0.07839637]
[1719829718154,2.49602664,62934.0,62933.0,0.07839637]
[1719829719068,2.49602622,62934.0,62933.0,0.07839637]
[1719829720207,2.48602622,62934.0,62933.0,0.07839637]
[1719829720795,2.41162622,62934.0,62933.0,0.07839637]
[1719829721465,2.41162622,62934.0,62933.0,0.2242083]
[1719829721466,0.53150204,62934.0,62933.0,0.2242083]
[1719829721696,0.84105136,62934.0,62933.0,0.26254019]
[1719829722232,0.83525501,62934.0,62933.0,0.26254019]
[1719829722420,0.83525501,62934.0,62933.0,0.22469626]
[1719829722824,0.82125501,62934.0,62933.0,0.22469626]
[1719829723272,0.82225501,62934.0,62933.0,0.22469626]
[1719829723991,0.80825501,62934.0,62933.0,0.22469626]
[1719829724193,0.81125501,62934.0,62933.0,0.22469626]
[1719829725932,0.81125501,62934.0,62933.0,0.22438433]
[1719829726064,0.81125501,62934.0,62933.0,0.25457469]
[1719829726272,0.81125501,62934.0,62933.0,0.25537469]
[1719829726710,0.81125501,62934.0,62933.0,0.25426276]
[1719829726888,0.81125501,62934.0,62933.0,0.25537469]
[1719829727334,0.81125501,62934.0,62933.0,0.25426276]
[1719829727538,0.81125501,62934.0,62933.0,0.25537469]
[1719829727738,0.81125501,62934.0,62933.0,0.25457469]
[1719829727977,0.81125501,62934.0,62933.0,0.32897469]
[1719829728441,0.81125501,62934.0,62933.0,0.32977469]
[1719829728928,0.49346201,62934.0,62933.0,0.32977469]
[1719829734194,0.49346201,62934.0,62933.0,0.22549626]
[1719829734369,0.49346201,62934.0,62933.0,0.29878433]
[1719829734650,0.49346201,62934.0,62933.0,0.29989626]
[1719829736428,0.49346201,62934.0,62933.0,0.29878433]
[1719829736838,0.49346201,62934.0,62933.0,0.29989626]
[1719829737398,0.17566901,62934.0,62933.0,0.29989626]
[1719829737597,0.49346201,62934.0,62933.0,0.29989626]
[1719829737802,0.49346201,62934.0,62933.0,0.32988589]
[1719829739037,0.49346201,62934.0,62933.0,0.25548589]
[1719829739244,0.49346201,62934.0,62933.0,0.32988589]
[1719829742068,0.49346201,62934.0,62933.0,0.32877396]
[1719829742272,0.49346201,62934.0,62933.0,0.32988589]
[1719829742492,0.49346201,62934.0,62933.0,0.29989626]
[1719829744486,0.17566901,62934.0,62933.0,0.29169626]
[1719829748014,0.01677301,62934.0,62933.0,0.29169626]
[1719829748269,0.00642962,62934.0,62933.0,1.08619126]
[1719829748476,0.00642962,62934.0,62933.0,1.90513181]
[1719829748979,0.00242962,62934.0,62933.0,1.90513181]
[1719829749420,0.00242962,62934.0,62933.0,1.90613181]
[1719829749770,0.00242962,62934.0,62933.0,1.90513181]
[1719829749974,0.00242962,62934.0,62933.0,1.70401988]
[1719829750162,0.00342962,62934.0,62933.0,1.70501988]
[1719829750370,0.00342962,62934.0,62933.0,1.70601988]
[1719829750791,0.00342962,62934.0,62933.0,1.90613181]
[1719829751024,0.00342962,62934.0,62933.0,1.90713181]
[1719829751025,0.00442962,62934.0,62933.0,1.90713181]
[1719829756351,0.00442962,62934.0,62933.0,2.10713181]
[1719829756485,0.00442962,62934.0,62933.0,2.13013181]
[1719829756924,0.00442962,62934.0,62933.0,2.26219727]
[1719829759679,0.00442962,62934.0,62933.0,2.18779727]
[1719829759881,0.00442962,62934.0,62933.0,2.06108168]
[1719829760127,0.00442962,62934.0,62933.0,2.26219361]
[1719829763174,0.00442962,62934.0,62933.0,2.26219268]
[1719829763351,0.00442962,62934.0,62933.0,2.13013181]
[1719829763557,0.00442962,62934.0,62933.0,2.26219268]
[1719829766294,0.00442962,62934.0,62933.0,2.2621871]
[1719829767128,0.00442962,62934.0,62933.0,2.3258231]
[1719829767484,0.00442962,62934.0,62933.0,2.06107517]
[1719829767683,0.00442962,62934.0,62933.0,2.2621871]
[1719829768496,0.00442962,62934.0,62933.0,2.13013181]
[1719829768700,0.00442962,62934.0,62933.0,2.26219112]
[1719829769157,0.00442962,62934.0,62933.0,2.13013181]
[1719829769358,0.00442962,62934.0,62933.0,1.92901988]
[1719829769565,0.00442962,62934.0,62933.0,2.13013181]
[1719829789281,0.00442962,62934.0,62933.0,1.81233381]
[1719829791589,0.00442962,62934.0,62933.0,1.61233381]
[1719829792176,0.00442962,62934.0,62933.0,1.81233381]
[1719829792547,0.00442962,62934.0,62933.0,1.61233381]
[1719829792672,0.00442962,62934.0,62933.0,1.29453581]
[1719829793100,0.00442962,62934.0,62933.0,0.37493881]
[1719829793298,0.16332562,62934.0,62933.0,0.44933881]
[1719829795736,0.48111862,62934.0,62933.0,0.44933881]
[1719829798128,0.48011862,62934.0,62933.0,0.44833881]
[1719829798338,0.47911862,62934.0,62933.0,0.44833881]
[1719829798532,0.48011862,62934.0,62933.0,0.44833881]
[1719829798945,0.48011862,62934.0,62933.0,0.44722688]
[1719829799151,0.48011862,62934.0,62933.0,0.44833881]
[1719829800363,0.48111862,62934.0,62933.0,0.44933881]
[1719829801033,0.48111862,62934.0,62933.0,0.37493881]
[1719829801238,0.48111862,62934.0,62933.0,0.44933881]
[1719829802230,0.48111862,62934.0,62933.0,0.31053524]
[1719829803385,0.16332562,62934.0,62933.0,0.31053524]
[1719829804379,0.16332562,62934.0,62933.0,0.07299626]
[1719829804580,1.25670462,62934.0,62933.0,0.07299626]
[1719829804996,1.25670462,62934.0,62933.0,0.14739626]
[1719829805503,1.25570462,62934.0,62933.0,0.14639626]
[1719829805705,1.25470462,62934.0,62933.0,0.14539626]
[1719829806132,1.25470462,62934.0,62933.0,0.14639626]
[1719829806541,1.25470462,62934.0,62933.0,0.14739626]
[1719829809431,1.25470462,62934.0,62933.0,0.14708433]
[1719829809837,1.25470462,62934.0,62933.0,0.14739626]
[1719829810142,1.25470462,62934.0,62933.0,0.16221589]
[1719829810980,1.25470462,62934.0,62933.0,0.16301589]
[1719829811183,1.25470462,62934.0,62933.0,0.16221589]
[1719829811996,1.25470462,62934.0,62933.0,0.14739626]
[1719829814561,1.25470462,62934.0,62933.0,0.14708433]
[1719829814830,1.25470462,62934.0,62933.0,0.14739626]
[1719829815245,0.79691162,62934.0,62933.0,0.14819626]
[1719829815582,0.79691162,62934.0,62933.0,0.16301589]
[1719829816304,0.79691162,62934.0,62933.0,0.16221589]
[1719829817677,0.79691162,62934.0,62933.0,0.16301589]
[1719829819389,0.47911862,62934.0,62933.0,0.16301589]
[1719829820548,0.79691162,62934.0,62933.0,0.16301589]
[1719829820762,0.93781162,62934.0,62933.0,0.14739626]
[1719829821019,1.25560462,62934.0,62933.0,0.07299626]
[1719829821229,1.26480462,62934.0,62933.0,0.07268433]
[1719829821432,1.26480462,62934.0,62933.0,0.07299626]
[1719829821654,1.4271436,62934.0,62933.0,0.07219637]
[1719829821856,1.4271436,62934.0,62933.0,0.07268433]
[1719829821857,1.8449366,62934.0,62933.0,0.07268433]
[1719829823608,1.8449366,62934.0,62933.0,0.07168433]
[1719829824014,1.8509366,62934.0,62933.0,0.07068433]
[1719829824211,1.8559366,62934.0,62933.0,0.07068433]
[1719829825742,1.8559366,62934.0,62933.0,0.07019637]
[1719829826493,1.8659366,62934.0,62933.0,0.07019637]
[1719829826817,1.8559366,62934.0,62933.0,0.07019637]
[1719829827640,1.8659366,62934.0,62933.0,0.07019637]
[1719829828009,1.8559366,62934.0,62933.0,0.07019637]
[1719829828424,1.8659366,62934.0,62933.0,0.07019637]
[1719829828598,1.8559366,62934.0,62933.0,0.07068433]
[1719829828948,1.8559366,62934.0,62933.0,0.07019637]
[1719829829604,1.8559366,62934.0,62933.0,0.07068433]
[1719829829838,1.8559366,62934.0,62933.0,0.07019637]
[1719829832326,1.8559366,62934.0,62933.0,0.07068433]
[1719829834456,1.8559366,62934.0,62933.0,0.07019637]
[1719829834819,1.8659366,62934.0,62933.0,0.07019637]
[1719829835206,1.8559366,62934.0,62933.0,0.07019637]
[1719829840119,1.8559366,62934.0,62933.0,0.07068433]
[1719829842169,1.8559366,62934.0,62933.0,0.07099626]
[1719829842360,1.8559366,62934.0,62933.0,0.07019637]
[1719829842587,1.8559366,62934.0,62933.0,0.07068433]
[1719829842761,1.8559366,62934.0,62933.0,0.07099626]
[1719829843348,1.8559366,62934.0,62933.0,0.07068433]
[1719829843547,1.8559366,62934.0,62933.0,0.07099626]
[1719829844339,1.5381436,62934.0,62933.0,0.07099626]
[1719829844840,1.5381436,62934.0,62933.0,0.07068433]
[1719829845069,1.5381436,62934.0,62933.0,0.07099626]
[1719829846768,1.5381436,62934.0,62933.0,0.08553589]
[1719829851246,1.5381436,62934.0,62933.0,0.07099626]
[1719829854425,1.3972436,62934.0,62933.0,0.07099626]
[1719829856038,1.22570462,62934.0,62933.0,0.07099626]
[1719829856235,1.22570462,62934.0,62933.0,0.21039626]
[1719829856491,0.59011862,62934.0,62933.0,0.07099626]
[1719829856698,0.01342962,62934.0,62933.0,0.22643369]
[1719829856910,0.01342962,62934.0,62933.0,0.23041134]
[1719829857119,0.01342962,62934.0,62933.0,0.38613269]
[1719829857548,0.00842962,62934.0,62933.0,0.38613269]
[1719829857720,0.00242962,62934.0,62933.0,0.38613269]
[1719829858230,0.00342962,62934.0,62933.0,0.38713269]
[1719829858568,0.00842962,62934.0,62933.0,0.38713269]
[1719829858977,0.00742962,62934.0,62933.0,0.38613269]
[1719829859194,0.00242962,62934.0,62933.0,0.38613269]
[1719829859631,0.00342962,62934.0,62933.0,0.38813269]
[1719829860412,0.00442962,62934.0,62933.0,0.39113269]
[1719829860607,0.00442962,62934.0,62933.0,1.18906767]
[1719829860808,0.00442962,62934.0,62933.0,1.90686567]
[1719829861033,0.00442962,62934.0,62933.0,1.92986567]
[1719829862175,0.00342962,62934.0,62933.0,1.92686567]
[1719829862372,0.00242962,62934.0,62933.0,1.92486567]
[1719829862809,0.00342962,62934.0,62933.0,1.93386567]
[1719829863208,0.00242962,62934.0,62933.0,1.92486567]
[1719829863564,0.00442962,62934.0,62933.0,1.74575374]
[1719829863764,0.00442962,62934.0,62933.0,1.94686567]
[1719829863992,0.00342962,62934.0,62933.0,1.93586567]
[1719829864192,0.00242962,62934.0,62933.0,1.92486567]
[1719829864374,0.00342962,62934.0,62933.0,1.93586567]
[1719829864725,0.00242962,62934.0,62933.0,1.92486567]
[1719829864911,0.00342962,62934.0,62933.0,1.93886567]
[1719829866109,0.00084,62945.0,62944.0,0.94255489]
[1719829866282,0.00084,62945.0,62944.0,1.70052673]
[1719829866493,0.00084,62945.0,62944.0,2.01826873]
[1719829867600,0.00084,62945.0,62944.0,2.02826873]
[1719829867601,0.00184,62945.0,62944.0,2.02826873]
[1719829867810,0.00284,62945.0,62944.0,2.03826873]
[1719829868386,0.00284,62945.0,62944.0,1.83826873]
[1719829868596,0.00284,62945.0,62944.0,2.03826873]
[1719829869249,0.00284,62945.0,62944.0,1.83826873]
[1719829869461,0.00284,62945.0,62944.0,1.52052673]
[1719829869666,0.00284,62945.0,62944.0,1.72052673]
[1719829871399,0.00284,62945.0,62944.0,1.36162758]
[1719829875987,0.317691,62955.0,62944.0,1.36162758]
[1719829875988,0.158828,62962.0,62961.0,0.00079989]
[1719829876186,0.158828,62962.0,62961.0,0.23807519]
[1719829876612,0.317645,62964.0,62963.0,0.00111193]
[1719829876813,0.476465,62964.0,62963.0,0.00159989]
[1719829877029,0.476465,62964.0,62963.0,0.04000741]
[1719829878049,1.111751,62964.0,62963.0,0.03920741]
[1719829878240,1.111751,62964.0,62963.0,0.07519989]
[1719829878241,1.250751,62964.0,62963.0,0.07519989]
[1719829879237,1.251751,62964.0,62963.0,0.00779989]
[1719829879443,1.251751,62964.0,62963.0,0.03046979]
[1719829880578,1.250751,62964.0,62963.0,0.01746979]
[1719829880986,1.250751,62964.0,62963.0,0.01946979]
[1719829881909,1.250751,62964.0,62963.0,0.02146979]
[1719829882065,1.250751,62964.0,62963.0,0.00479989]
[1719829885704,1.174951,62964.0,62963.0,0.00479989]
[1719829895994,1.579196,62964.0,62963.0,0.00448796]
[1719829896973,1.579196,62964.0,62963.0,0.00079989]
[1719829897394,1.579196,62964.0,62963.0,0.00179989]
[1719829898680,1.74153498,62964.0,62963.0,0.001]
[1719829898864,1.74153498,62964.0,62963.0,0.00148796]
[1719829899658,1.74153498,62964.0,62963.0,0.00048796]
[1719829900178,1.586007,62963.0,62962.0,0.00079989]
[1719829900440,1.586007,62963.0,62960.0,0.15938711]
[1719829900441,0.485684,62961.0,62960.0,0.15938711]
[1719829900762,1.438652,62961.0,62960.0,0.15938711]
[1719829901040,1.429452,62961.0,62960.0,0.15969904]
[1719829901384,1.438652,62961.0,62960.0,0.15938711]
[1719829901584,1.429452,62961.0,62960.0,0.15969904]
[1719829901843,1.429452,62961.0,62960.0,0.25508894]
[1719829903258,1.429452,62961.0,62960.0,0.25808894]
[1719829903817,1.429452,62961.0,62960.0,0.26108894]
[1719829904194,1.111796,62961.0,62960.0,0.39828894]
[1719829905426,1.111796,62961.0,62960.0,0.17838979]
[1719829905633,1.111796,62961.0,62960.0,0.33728894]
[1719829905953,1.111796,62961.0,62960.0,0.17838979]
[1719829915761,1.111796,62961.0,62960.0,0.10618979]
[1719829916056,1.111796,62961.0,62960.0,0.17838979]
[1719829918511,1.111796,62961.0,62960.0,0.17470231]
[1719829919218,1.111796,62961.0,62960.0,0.10250231]
[1719829919499,1.111796,62961.0,62960.0,0.09850231]
[1719829921939,1.120996,62961.0,62960.0,0.09850231]
[1719829922347,1.120996,62961.0,62960.0,0.0782]
[1719829922752,1.111796,62961.0,62960.0,0.0782]
[1719829924232,1.111796,62961.0,62960.0,0.1447]
[1719829927998,1.111796,62961.0,62960.0,0.0782]
[1719829928474,1.120996,62961.0,62960.0,0.0782]
[1719829929092,1.111796,62961.0,62960.0,0.0782]
[1719829930193,1.111796,62961.0,62960.0,0.006]
[1719829930371,1.111796,62961.0,62960.0,0.0782]
[1719829932060,1.111796,62961.0,62960.0,0.10128]
[1719829932473,1.111796,62961.0,62960.0,0.18438]
[1719829933298,0.79414,62961.0,62960.0,0.18438]
[1719829933527,0.79414,62961.0,62960.0,0.19518]
[1719829942301,0.79414,62961.0,62960.0,0.25608]
[1719829943467,0.77727917,62961.0,62960.0,0.25608]
[1719829944293,0.15966,62964.0,62963.0,0.0871]
[1719829944467,0.477301,62964.0,62963.0,0.226076]
[1719829944812,0.00084,62964.0,62963.0,0.54723798]
[1719829945012,0.00084,62964.0,62963.0,0.38841498]
[1719829945214,0.00084,62964.0,62963.0,0.55074869]
[1719829945877,0.00184,62964.0,62963.0,0.55074869]
[1719829946039,0.00084,62964.0,62963.0,0.55074869]
[1719829946421,0.00084,62964.0,62963.0,0.72257169]
[1719829946617,0.00184,62964.0,62963.0,0.73657169]
[1719829946822,0.00184,62964.0,62963.0,1.05421769]
[1719829949741,0.00184,62964.0,62963.0,1.05285669]
[1719829951183,0.00184,62964.0,62963.0,0.73521069]
[1719829952343,0.00184,62964.0,62963.0,1.05285669]
[1719829955115,0.00184,62964.0,62963.0,1.37050269]
[1719829959200,0.00184,62964.0,62963.0,1.57050269]
[1719829959786,0.00184,62964.0,62963.0,1.88814869]
[1719829960581,0.00184,62964.0,62963.0,2.08814869]
[1719829960947,0.00184,62964.0,62963.0,2.40579469]
[1719829961165,0.00184,62964.0,62963.0,2.56079022]
[1719829961623,0.00084,62964.0,62963.0,2.54679022]
[1719829962026,0.00084,62964.0,62963.0,2.56079022]
[1719829962776,0.00084,62964.0,62963.0,2.54779022]
[1719829963193,0.00084,62964.0,62963.0,2.56179022]
[1719829963807,0.00084,62969.0,62968.0,1.976794]
[1719829964041,0.00084,62969.0,62968.0,2.37366669]
[1719829965341,0.00084,62969.0,62968.0,2.38766669]
[1719829966763,0.00084,62969.0,62968.0,2.40166669]
[1719829968506,0.00084,62969.0,62968.0,2.42466669]
[1719829968703,0.00084,62969.0,62968.0,2.21386669]
[1719829968940,0.00084,62969.0,62968.0,2.42466669]
[1719829969168,0.00084,62969.0,62968.0,2.39666669]
[1719829969581,0.00084,62969.0,62968.0,2.41066669]
[1719829969780,0.00084,62969.0,62968.0,2.39666669]
[1719829970114,0.00084,62969.0,62968.0,2.41066669]
[1719829971076,0.00084,62969.0,62968.0,2.42466669]
[1719829972250,0.00084,62969.0,62968.0,2.41066669]
[1719829972495,0.00084,62969.0,62968.0,2.42466669]
[1719829972919,0.00084,62969.0,62968.0,2.62466669]
[1719829973152,0.00401548,62988.0,62968.0,2.62466669]
[1719829973153,0.00401548,62988.0,62987.0,0.476287]
[1719829973346,0.00401548,62988.0,62987.0,1.0570166]
[1719829973903,0.00401548,62988.0,62987.0,0.7394916]
[1719829974533,0.00401548,62988.0,62987.0,0.7454916]
[1719829976341,0.00242774,62988.0,62987.0,0.7454916]
[1719829976662,0.00084,62988.0,62987.0,0.7454916]
[1719829976833,0.00084,62988.0,62987.0,0.7504916]
[1719829978448,0.00084,62988.0,62987.0,0.2741356]
[1719829981348,0.00084,62988.0,62987.0,0.3355356]
[1719829981548,0.00084,62988.0,62987.0,0.3463356]
[1719829983170,0.00084,62988.0,62987.0,0.6638606]
[1719829983349,0.00084,62988.0,62987.0,1.41012458]
[1719829983769,0.00084,62988.0,62987.0,1.72764958]
[1719829984174,0.00084,62988.0,62987.0,1.72164958]
[1719829984695,0.00084,62988.0,62987.0,1.71664958]
[1719829984909,0.00084,62988.0,62987.0,1.72964958]
[1719829985108,0.00084,62988.0,62987.0,1.74264958]
[1719829985957,0.06584,62988.0,62987.0,0.2891356]
[1719829986197,0.06584,62988.0,62987.0,0.3613356]
[1719829986389,0.06584,62988.0,62987.0,0.6788606]
[1719829988115,0.06584,62988.0,62987.0,0.3613356]
[1719829989214,0.00084,62988.0,62987.0,0.4403356]
[1719829989926,0.00084,62988.0,62987.0,0.7578606]
[1719829990266,0.00084,62988.0,62987.0,0.9578606]
[1719829990689,0.00084,62988.0,62987.0,0.7578606]
[1719829991326,0.00084,62988.0,62987.0,1.23772458]
[1719829995862,0.00084,62988.0,62987.0,0.84799958]
[1719829996062,0.06554,62988.0,62987.0,0.2025736]
[1719829996414,0.06554,62988.0,62987.0,0.3613356]
[1719829997027,0.06554,62988.0,62987.0,0.6788606]
[1719829997196,0.00084,62988.0,62987.0,0.6788606]
[1719829998146,0.00084,62988.0,62987.0,0.6066606]
[1719829998390,0.00084,62988.0,62987.0,0.6788606]
[1719829998649,0.00084,62988.0,62987.0,0.7607606]
[1719829999331,0.00084,62988.0,62987.0,0.9607606]
[1719829999483,0.00084,62988.0,62987.0,0.7607606]
[1719830000275,0.00084,62988.0,62987.0,0.6885606]
[1719830000475,0.00084,62988.0,62987.0,0.7607606]
[1719830001444,0.00084,62988.0,62987.0,1.24062458]
[1719830003756,0.00084,62988.0,62987.0,0.92309958]
[1719830006407,0.00084,62988.0,62987.0,1.24062458]
[1719830006615,0.00084,62988.0,62987.0,1.70582458]
[1719830007030,0.00084,62988.0,62987.0,2.02334958]
[1719830007658,0.00084,62988.0,62987.0,2.01034958]
[1719830007866,0.00084,62988.0,62987.0,1.99734958]
[1719830007993,0.00084,62988.0,62987.0,2.02534958]
[1719830009415,0.00084,62988.0,62987.0,2.22534958]
[1719830009617,0.00084,62988.0,62987.0,2.24834958]
[1719830009997,0.00084,62988.0,62987.0,2.29596573]
[1719830010193,0.0001892,62998.0,62987.0,2.29596573]
[1719830010194,0.0001892,62998.0,62997.0,0.887012]
[1719830010417,0.0001892,62998.0,62997.0,1.76005698]
[1719830010638,0.0001892,62998.0,62997.0,2.07753198]
[1719830012372,0.0001892,62998.0,62997.0,2.09153198]
[1719830012699,0.0001892,62998.0,62997.0,2.10353198]
[1719830012893,0.0001892,62998.0,62997.0,2.26586569]
[1719830013096,0.0001892,62998.0,62997.0,2.25386569]
[1719830013643,0.0001892,62998.0,62997.0,2.23986569]